bitfinex/quotes_BTCUSD_20251116
["timestamp","ask_amount","ask_price","bid_price","bid_amount"]
[1763324411477,0.01974576,94447.0,94445.0,0.04389553]
[1763324411675,0.01974513,94446.0,94445.0,0.04389553]
[1763324412101,0.00982653,94459.0,94445.0,0.04389553]
[1763324412417,0.01662492,94446.0,94445.0,0.04402997]
[1763324412802,0.02957166,94462.0,94445.0,0.04402997]
[1763324413002,0.01662454,94446.0,94445.0,0.05341298]
[1763324413203,0.02957166,94462.0,94445.0,0.05341298]
[1763324413406,0.00987235,94461.0,94446.0,0.04389553]
[1763324413666,0.00987235,94460.0,94446.0,0.04389553]
[1763324413842,0.01662466,94458.0,94450.0,0.00960013]
[1763324414022,0.00987235,94457.0,94450.0,0.00960013]
[1763324414222,0.00987235,94456.0,94446.0,0.00809463]
[1763324414419,0.00987235,94455.0,94439.0,0.0349801]
[1763324414621,0.00987235,94454.0,94440.0,0.03027401]
[1763324414809,0.01662423,94452.0,94440.0,0.03027401]
[1763324415013,0.00987235,94451.0,94437.0,0.02206]
[1763324415412,0.08492,94450.0,94437.0,0.02206]
[1763324416403,0.08492,94450.0,94438.0,0.04299]
[1763324416832,0.01662423,94452.0,94449.0,0.04942]
[1763324417030,0.03184715,94472.0,94451.0,0.02844]
[1763324417232,0.00987685,94471.0,94452.0,0.1491]
[1763324417592,0.01662252,94469.0,94453.0,0.216241]
[1763324417742,0.00987685,94468.0,94453.0,0.19209]
[1763324417910,0.00987685,94467.0,94464.0,0.02098]
[1763324418112,0.00013441,94472.0,94464.0,0.02098]
[1763324418311,0.00013441,94472.0,94471.0,0.04942]
[1763324418717,0.00013441,94472.0,94471.0,0.09241]
[1763324419503,0.05292077,94509.0,94471.0,0.09341]
[1763324419665,4.662733,94497.0,94471.0,0.09441]
[1763324419866,0.01689854,94481.0,94471.0,0.09441]
[1763324420071,0.00987334,94480.0,94471.0,0.09441]
[1763324420272,0.0166208,94479.0,94471.0,0.09441]
[1763324420477,0.00987334,94478.0,94471.0,0.09341]
[1763324420677,0.0166208,94479.0,94478.0,0.04942]
[1763324421081,0.0166208,94479.0,94478.0,0.09241]
[1763324422301,0.0166208,94479.0,94478.0,0.02098]
[1763324422999,0.0166208,94479.0,94478.0,0.02198]
[1763324423264,0.0166208,94479.0,94478.0,0.02098]
[1763324423398,0.0166208,94479.0,94478.0,0.02198]
[1763324423782,0.0166208,94479.0,94478.0,0.09341]
[1763324423997,0.0166208,94479.0,94478.0,0.02198]
[1763324424214,0.0166208,94479.0,94478.0,0.001]
[1763324424630,0.0166208,94479.0,94478.0,0.002]
[1763324425284,0.1015008,94479.0,94478.0,0.002]
[1763324425513,0.12122114,94479.0,94478.0,0.002]
[1763324426237,0.12122114,94479.0,94478.0,0.03044]
[1763324426468,0.1015008,94479.0,94478.0,0.07343]
[1763324427203,0.1015008,94479.0,94478.0,0.22253]
[1763324427635,0.08488,94479.0,94478.0,0.22253]
[1763324429125,0.08488,94479.0,94478.0,0.22153]
[1763324429330,0.08488,94479.0,94478.0,0.22053]
[1763324429668,0.08488,94479.0,94478.0,0.26494874]
[1763324429867,0.08488,94479.0,94478.0,0.29354161]
[1763324430468,0.08488,94479.0,94478.0,0.29454161]
[1763324430855,0.08488,94479.0,94478.0,0.26494874]
[1763324431056,0.08488,94479.0,94478.0,0.26594874]
[1763324431286,0.08488,94479.0,94478.0,0.26494874]
[1763324431680,0.08488,94479.0,94478.0,0.26594874]
[1763324434831,0.01720793,94497.0,94478.0,0.1511]
[1763324435029,0.01661613,94504.0,94478.0,0.17954]
[1763324435030,0.02952838,94496.0,94478.0,0.17954]
[1763324435232,0.02952838,94495.0,94478.0,0.17954]
[1763324435433,0.02952838,94494.0,94478.0,0.17954]
[1763324435607,0.01968559,94493.0,94478.0,0.17954]
[1763324435812,0.08488,94495.0,94478.0,0.17854]
[1763324435813,0.01968559,94492.0,94478.0,0.17854]
[1763324436014,0.01968559,94491.0,94478.0,0.17854]
[1763324436237,0.01968559,94490.0,94478.0,0.17754]
[1763324436415,0.01968559,94489.0,94478.0,0.17754]
[1763324436757,0.01968559,94488.0,94479.0,0.04299]
[1763324436928,0.01968559,94487.0,94479.0,0.04299]
[1763324437141,0.01968559,94486.0,94480.0,0.02098]
[1763324437336,0.01968559,94485.0,94480.0,0.02098]
[1763324437534,0.01968559,94484.0,94481.0,0.04299]
[1763324437764,0.01968559,94483.0,94481.0,0.04299]
[1763324437921,0.01968559,94482.0,94480.0,0.02098]
[1763324438124,0.00013441,94496.0,94478.0,0.1491]
[1763324438125,0.01968559,94481.0,94478.0,0.1491]
[1763324438371,0.01968559,94480.0,94478.0,0.1491]
[1763324438585,0.01968559,94479.0,94478.0,0.1491]
[1763324439010,0.01969175,94495.0,94481.0,0.001]
[1763324439212,0.02953763,94494.0,94478.0,0.1491]
[1763324439391,0.04922322,94493.0,94478.0,0.1491]
[1763324439708,0.02953763,94492.0,94479.0,0.1491]
[1763324439940,0.02953763,94491.0,94480.0,0.001]
[1763324440144,0.02953763,94490.0,94480.0,0.001]
[1763324440316,0.02953763,94490.0,94479.0,0.1491]
[1763324440317,0.02953763,94489.0,94479.0,0.1491]
[1763324440523,0.02953763,94488.0,94479.0,0.1491]
[1763324440722,0.02953763,94487.0,94479.0,0.1491]
[1763324440880,0.02953763,94486.0,94479.0,0.1491]
[1763324441079,0.02953763,94485.0,94479.0,0.1491]
[1763324441308,0.02953763,94484.0,94479.0,0.1491]
[1763324441467,0.02953763,94483.0,94479.0,0.1491]
[1763324441670,0.02953763,94482.0,94479.0,0.1491]
[1763324441871,0.02953763,94481.0,94479.0,0.1491]
[1763324442112,0.02953763,94480.0,94479.0,0.1491]
[1763324445596,0.43741763,94480.0,94479.0,0.1491]
[1763324446511,0.46017126,94480.0,94479.0,0.1491]
[1763324446856,0.43741763,94480.0,94479.0,0.1491]
[1763324447064,0.01661917,94485.0,94479.0,0.1491]
[1763324447065,0.323,94484.0,94479.0,0.1491]
[1763324447267,0.02275426,94483.0,94479.0,0.1491]
[1763324447721,0.05459465,94483.0,94479.0,0.1491]
[1763324450128,0.03184039,94483.0,94479.0,0.1491]
[1763324451417,0.03184039,94483.0,94465.0,0.1491]
[1763324453182,0.01661954,94479.0,94465.0,0.18914]
[1763324453479,0.01661954,94479.0,94466.0,0.04004]
[1763324453653,0.01661954,94479.0,94478.0,0.04736]
[1763324454250,0.01661917,94485.0,94478.0,0.04736]
[1763324455223,0.08488,94484.0,94478.0,0.04736]
[1763324455428,0.08488,94483.0,94478.0,0.04736]
[1763324456987,0.323,94482.0,94478.0,0.04736]
[1763324457185,0.08488,94483.0,94478.0,0.04736]
[1763324457456,0.33961914,94482.0,94479.0,0.1491]
[1763324457806,0.33961914,94482.0,94479.0,0.18914]
[1763324458130,0.33961914,94482.0,94481.0,0.02634]
[1763324458332,0.362411,94482.0,94481.0,0.02634]
[1763324458568,0.039411,94482.0,94481.0,0.06638]
[1763324458770,0.01661914,94482.0,94481.0,0.06638]
[1763324459042,0.04630006,94482.0,94481.0,0.06638]
[1763324459996,0.04630093,94482.0,94481.0,0.06638]
[1763324461831,0.03640642,94482.0,94481.0,0.06638]
[1763324462308,0.03640642,94482.0,94481.0,0.06738]
[1763324463170,0.04631026,94482.0,94481.0,0.21652]
[1763324463587,0.04631026,94482.0,94481.0,0.21552]
[1763324463997,0.03640642,94482.0,94481.0,0.21656]
[1763324464202,0.04631651,94482.0,94481.0,0.21656]
[1763324464500,0.03640642,94482.0,94481.0,0.2166]
[1763324464712,0.04631819,94482.0,94481.0,0.2166]
[1763324464906,0.04631817,94482.0,94481.0,0.2166]
[1763324465284,0.45419817,94482.0,94481.0,0.2166]
[1763324465488,0.36931817,94482.0,94481.0,0.2166]
[1763324465695,0.45419817,94482.0,94481.0,0.2166]
[1763324465928,0.47703891,94482.0,94481.0,0.2166]
[1763324466136,0.4770387,94482.0,94481.0,0.17656]
[1763324466437,0.4770387,94482.0,94481.0,0.15022]
[1763324466764,0.4770387,94482.0,94481.0,0.00112]
[1763324466985,0.3921587,94482.0,94481.0,0.00112]
[1763324467664,0.3921587,94482.0,94481.0,0.00012]
[1763324470117,0.40198523,94482.0,94481.0,0.00012]
[1763324470251,0.40203139,94482.0,94481.0,0.00012]
[1763324471754,0.39220486,94482.0,94481.0,0.00012]
[1763324471956,0.05258572,94482.0,94481.0,0.00012]
[1763324472087,0.04636563,94482.0,94481.0,0.00012]
[1763324474425,0.04636563,94482.0,94481.0,0.02114]
[1763324474628,0.04636563,94482.0,94481.0,0.09574]
[1763324474629,0.02974519,94482.0,94481.0,0.09574]
[1763324475240,0.01983013,94482.0,94481.0,0.09574]
[1763324475446,0.42771013,94482.0,94481.0,0.09574]
[1763324476185,0.42771013,94482.0,94481.0,0.04748]
[1763324476533,0.42771013,94482.0,94481.0,0.04897]
[1763324476891,0.42771013,94482.0,94481.0,0.08887]
[1763324477213,0.42771013,94482.0,94481.0,0.08987]
[1763324478229,0.34283013,94482.0,94481.0,0.00212]
[1763324478404,0.35273901,94482.0,94481.0,0.00212]
[1763324478617,0.34283013,94482.0,94481.0,0.00212]
[1763324478953,0.35273897,94482.0,94481.0,0.00212]
[1763324479173,0.35273897,94482.0,94481.0,0.00012]
[1763324479920,0.34283013,94482.0,94481.0,0.00012]
[1763324480116,0.34283013,94482.0,94481.0,0.02086]
[1763324480454,0.3527389,94482.0,94481.0,0.02086]
[1763324480657,0.34283013,94482.0,94481.0,0.02086]
[1763324481064,0.34283013,94482.0,94481.0,0.08759]
[1763324482386,0.34283013,94482.0,94481.0,0.08859]
[1763324482505,0.34283013,94482.0,94481.0,0.248651]
[1763324482717,0.34283013,94482.0,94481.0,0.23769]
[1763324483147,0.34283013,94482.0,94481.0,0.15122]
[1763324483366,0.34283013,94482.0,94481.0,0.19779]
[1763324484374,0.34283013,94482.0,94481.0,0.23869]
[1763324484528,0.323,94482.0,94481.0,0.23869]
[1763324484734,0.01661816,94492.0,94481.0,0.23869]
[1763324484915,0.01661816,94492.0,94491.0,0.04657]
[1763324485122,0.01661816,94492.0,94491.0,0.19567]
[1763324485346,0.10149816,94492.0,94491.0,0.23657]
[1763324486323,0.08488,94492.0,94491.0,0.23657]
[1763324487549,0.32313441,94496.0,94491.0,0.23657]
[1763324487550,0.00013441,94496.0,94491.0,0.23657]
[1763324487756,0.00013441,94496.0,94495.0,0.06633014]
[1763324488209,0.00013441,94496.0,94495.0,0.21543014]
[1763324489804,0.00013441,94496.0,94495.0,0.21643014]
[1763324490286,0.00013441,94496.0,94495.0,0.21743014]
[1763324490467,0.00013441,94496.0,94495.0,0.21643014]
[1763324490668,0.00013441,94496.0,94495.0,0.24014715]
[1763324490892,0.00013441,94496.0,94495.0,0.24114715]
[1763324491097,0.00013441,94496.0,94495.0,0.21743014]
[1763324492352,0.00013441,94496.0,94495.0,0.002]
[1763324493145,0.00013441,94496.0,94495.0,0.001]
[1763324493951,0.00013441,94496.0,94492.0,0.1491]
[1763324494333,0.00013441,94496.0,94495.0,0.001]
[1763324494717,0.00013441,94496.0,94492.0,0.1491]
[1763324495128,0.00013441,94496.0,94495.0,0.02583]
[1763324495382,0.40801441,94496.0,94495.0,0.02583]
[1763324496659,0.42779696,94496.0,94495.0,0.02583]
[1763324496858,0.42779696,94496.0,94495.0,0.06673]
[1763324497117,0.40801441,94496.0,94495.0,0.02583]
[1763324497289,0.40801441,94496.0,94495.0,0.02683]
[1763324497893,0.40801441,94496.0,94495.0,0.001]
[1763324498092,0.42779624,94496.0,94495.0,0.02683]
[1763324498257,0.42779659,94496.0,94495.0,0.02683]
[1763324498458,0.40801441,94496.0,94495.0,0.02683]
[1763324499279,0.42779767,94496.0,94495.0,0.02683]
[1763324499485,0.32313441,94496.0,94495.0,0.06773]
[1763324499848,0.32313441,94496.0,94495.0,0.21683]
[1763324500550,0.32313441,94496.0,94495.0,0.21583]
[1763324500951,0.32313441,94496.0,94495.0,0.21683]
[1763324501151,0.32313441,94496.0,94495.0,0.21783]
[1763324501347,0.32313441,94496.0,94495.0,0.21583]
[1763324501652,0.32313441,94496.0,94495.0,0.21783]
[1763324504845,0.32313441,94496.0,94495.0,0.28510574]
[1763324505422,0.08488,94496.0,94495.0,0.28510574]
[1763324510260,0.01661305,94520.0,94504.0,0.13182206]
[1763324510402,0.01661305,94520.0,94509.0,0.08411044]
[1763324510777,0.08504,94510.0,94509.0,0.08411044]
[1763324511020,0.42535466,94510.0,94509.0,0.08411044]
[1763324511659,0.43524523,94510.0,94509.0,0.08411044]
[1763324512810,0.42535466,94510.0,94509.0,0.08411044]
[1763324513017,0.42535466,94510.0,94509.0,0.08511044]
[1763324513365,0.43524913,94510.0,94509.0,0.08511044]
[1763324515190,0.45504125,94510.0,94509.0,0.04664044]
[1763324515369,0.45504125,94510.0,94509.0,0.02168]
[1763324515746,0.37020125,94510.0,94509.0,0.02168]
[1763324515900,0.37020125,94510.0,94509.0,0.15350206]
[1763324519391,0.37020125,94510.0,94509.0,0.13282206]
[1763324520839,0.39300154,94510.0,94509.0,0.13282206]
[1763324521033,0.40961573,94510.0,94509.0,0.13282206]
[1763324521237,0.40961573,94510.0,94509.0,0.13182206]
[1763324521488,0.39300154,94510.0,94509.0,0.13182206]
[1763324521690,0.39300154,94510.0,94509.0,0.13282206]
[1763324521966,0.39300154,94510.0,94497.0,0.02068]
[1763324521967,0.323,94509.0,94498.0,0.13182206]
[1763324522176,0.05248688,94508.0,94498.0,0.13182206]
[1763324522375,0.02968659,94507.0,94498.0,0.13182206]
[1763324522574,0.02968659,94506.0,94498.0,0.13182206]
[1763324522776,0.02968659,94505.0,94498.0,0.13182206]
[1763324522989,0.02968659,94504.0,94498.0,0.13182206]
[1763324523208,0.02968659,94503.0,94498.0,0.13182206]
[1763324523411,0.02968659,94502.0,94498.0,0.13182206]
[1763324523642,0.02968659,94501.0,94498.0,0.13182206]
[1763324523926,0.02969567,94500.0,94498.0,0.13182206]
[1763324524118,0.02969567,94499.0,94498.0,0.13182206]
[1763324524512,0.01661512,94500.0,94498.0,0.13182206]
[1763324525423,0.08484,94499.0,94498.0,0.13182206]
[1763324526464,0.40784,94499.0,94498.0,0.15802206]
[1763324526667,0.40784,94499.0,94498.0,0.19649206]
[1763324527629,0.40784,94499.0,94498.0,0.13182206]
[1763324530241,0.323,94499.0,94498.0,0.13182206]
[1763324531572,0.323,94499.0,94498.0,0.20967427]
[1763324531775,0.323,94499.0,94498.0,0.19649206]
[1763324532705,0.323,94499.0,94498.0,0.19749206]
[1763324533807,0.323,94499.0,94498.0,0.19649206]
[1763324534210,0.323,94499.0,94498.0,0.19749206]
[1763324535167,0.323,94499.0,94498.0,0.19849206]
[1763324535424,0.40784,94499.0,94498.0,0.19849206]
[1763324535605,0.08484,94499.0,94498.0,0.19849206]
[1763324538111,0.08484,94499.0,94498.0,0.16002206]
[1763324538497,0.08484,94499.0,94498.0,0.19974206]
[1763324538954,0.08484,94499.0,94498.0,0.19774206]
[1763324539143,0.02969265,94499.0,94498.0,0.13182206]
[1763324539355,0.02969265,94499.0,94498.0,0.13282206]
[1763324540832,0.02969265,94499.0,94498.0,0.19491206]
[1763324541368,0.02969265,94499.0,94498.0,0.13282206]
[1763324541730,0.02969265,94499.0,94498.0,0.13182206]
[1763324542185,0.02969265,94499.0,94498.0,0.13282206]
[1763324542519,0.02969265,94499.0,94498.0,0.13182206]
[1763324545280,0.43753265,94499.0,94498.0,0.13182206]
[1763324546043,0.46034794,94499.0,94498.0,0.13182206]
[1763324547082,0.37550794,94499.0,94498.0,0.13182206]
[1763324548120,0.37551372,94499.0,94498.0,0.13182206]
[1763324549302,0.39212938,94499.0,94498.0,0.13182206]
[1763324549504,0.37551372,94499.0,94498.0,0.13182206]
[1763324552311,0.37551372,94499.0,94498.0,0.19391206]
[1763324553470,0.37551372,94499.0,94498.0,0.21330327]
[1763324554294,0.35269843,94499.0,94498.0,0.19391206]
[1763324555320,0.43753843,94499.0,94498.0,0.19391206]
[1763324557037,0.43753843,94499.0,94498.0,0.19491206]
[1763324560864,0.41774317,94499.0,94498.0,0.19491206]
[1763324561074,0.42765704,94499.0,94498.0,0.19491206]
[1763324561215,0.40784,94499.0,94498.0,0.19491206]
[1763324566244,0.19092147,94499.0,94498.0,0.19491206]
[1763324566537,0.08484,94499.0,94498.0,0.19491206]
[1763324568209,0.1145678,94499.0,94498.0,0.19491206]
[1763324568364,0.4375678,94499.0,94498.0,0.19491206]
[1763324568932,0.42765839,94499.0,94498.0,0.19491206]
[1763324569136,0.43756812,94499.0,94498.0,0.19491206]
[1763324569540,0.43756812,94499.0,94498.0,0.21440327]
[1763324569796,0.42765839,94499.0,94498.0,0.19491206]
[1763324570195,0.43756783,94499.0,94498.0,0.19491206]
[1763324570900,0.42765839,94499.0,94498.0,0.19491206]
[1763324573065,0.34281839,94499.0,94498.0,0.19491206]
[1763324573481,0.323,94499.0,94498.0,0.19491206]
[1763324574689,0.34281635,94499.0,94498.0,0.19491206]
[1763324575300,0.40784,94499.0,94498.0,0.19491206]
[1763324577308,0.42765752,94499.0,94498.0,0.19491206]
[1763324578762,0.40784,94499.0,94498.0,0.19491206]
[1763324578955,0.40784,94499.0,94498.0,0.21440327]
[1763324579101,0.323,94499.0,94498.0,0.19491206]
[1763324582254,0.3428351,94499.0,94498.0,0.19491206]
[1763324582671,0.3428351,94499.0,94498.0,0.2383308]
[1763324582672,0.323,94499.0,94498.0,0.2383308]
[1763324582892,0.323,94499.0,94498.0,0.26216388]
[1763324583576,0.0166137,94507.0,94499.0,0.04341874]
[1763324583938,0.0166137,94507.0,94506.0,0.13907348]
[1763324584140,0.04636608,94507.0,94506.0,0.13907348]
[1763324584348,0.04636608,94507.0,94506.0,0.193289]
[1763324584883,0.0166137,94507.0,94506.0,0.193289]
[1763324585136,0.01751566,94510.0,94506.0,0.193289]
[1763324585340,0.01751566,94510.0,94509.0,0.02423]
[1763324585561,0.08484,94510.0,94509.0,0.02423]
[1763324585739,0.08484,94510.0,94509.0,0.0814389]
[1763324585946,0.08484,94510.0,94509.0,0.12485764]
[1763324586122,0.08484,94510.0,94509.0,0.27395764]
[1763324586530,0.42623835,94510.0,94509.0,0.27395764]
[1763324586901,0.08484,94510.0,94509.0,0.12485764]
[1763324587108,0.03202012,94530.0,94529.0,0.13864222]
[1763324587306,0.08528795,94530.0,94529.0,0.19635644]
[1763324587510,0.00215393,94532.0,94529.0,0.23423644]
[1763324587750,0.00223448,94532.0,94531.0,0.06764874]
[1763324587949,0.10512654,94532.0,94531.0,0.06764874]
[1763324588193,0.41007448,94532.0,94531.0,0.10552874]
[1763324588393,0.41007448,94532.0,94531.0,0.12895238]
[1763324588582,0.08707448,94532.0,94531.0,0.12895238]
[1763324589346,0.08707448,94532.0,94531.0,0.12995238]
[1763324589968,0.08707448,94532.0,94531.0,0.13095238]
[1763324590373,0.08707448,94532.0,94531.0,0.12995238]
[1763324590844,0.08707448,94532.0,94531.0,0.13095238]
[1763324591194,0.08707448,94532.0,94531.0,0.13295238]
[1763324593139,0.01660677,94554.0,94532.0,0.04341874]
[1763324593365,0.01848213,94550.0,94549.0,0.21598236]
[1763324593489,0.0002,94550.0,94549.0,0.21598236]
[1763324594763,0.0002,94550.0,94549.0,0.21698236]
[1763324595161,0.0002,94550.0,94549.0,0.21598236]
[1763324595378,0.40804,94550.0,94549.0,0.2391436]
[1763324595539,0.40804,94550.0,94549.0,0.2401436]
[1763324596461,0.40804,94550.0,94549.0,0.2411436]
[1763324596668,0.01660382,94568.0,94549.0,0.2411436]
[1763324596847,0.01660382,94568.0,94559.0,0.06841874]
[1763324597079,0.02269303,94605.0,94560.0,0.04341874]
[1763324597277,0.11437512,94604.0,94593.0,0.01777056]
[1763324597525,0.01660342,94594.0,94593.0,0.01777056]
[1763324597729,0.04613854,94594.0,94593.0,0.01777056]
[1763324598276,0.06418738,94594.0,94593.0,0.01777056]
[1763324598986,0.06590999,94594.0,94593.0,0.01777056]
[1763324599409,0.09771345,94594.0,94593.0,0.01777056]
[1763324601023,0.09771345,94594.0,94593.0,0.04277056]
[1763324601432,0.09771345,94594.0,94593.0,0.01777056]
[1763324604911,0.09771345,94594.0,94593.0,0.04277056]
[1763324605115,0.09771345,94594.0,94593.0,0.07810056]
[1763324605411,0.50551345,94594.0,94593.0,0.07810056]
[1763324605612,0.50551345,94594.0,94593.0,0.04277056]
[1763324607840,0.42071345,94594.0,94593.0,0.07810056]
[1763324611048,0.323,94593.0,94584.0,0.01937]
[1763324611369,0.00147267,94585.0,94584.0,0.01937]
[1763324611559,0.03100779,94585.0,94584.0,0.01937]
[1763324611762,0.03100779,94585.0,94579.0,0.01937]
[1763324612016,0.02953512,94584.0,94579.0,0.01937]
[1763324612222,0.02953512,94583.0,94579.0,0.01937]
[1763324612393,0.02953512,94582.0,94579.0,0.01937]
[1763324612689,0.02953512,94581.0,94579.0,0.01937]
[1763324612854,0.02953512,94580.0,94579.0,0.01937]
[1763324613049,0.02953512,94580.0,94579.0,0.102017]
[1763324613656,0.02953512,94580.0,94579.0,0.0797]
[1763324614803,0.02953512,94580.0,94579.0,0.01937]
[1763324615013,0.02953512,94580.0,94573.0,0.1491]
[1763324615218,0.02953512,94579.0,94573.0,0.1491]
[1763324615373,0.02953512,94579.0,94563.0,0.01937]
[1763324615375,0.02953512,94579.0,94564.0,0.1491]
[1763324615376,0.02953512,94578.0,94564.0,0.1491]
[1763324615576,0.03936165,94577.0,94559.0,0.1491]
[1763324615807,0.02953512,94576.0,94559.0,0.1491]
[1763324615997,0.02953512,94575.0,94559.0,0.1491]
[1763324616309,0.02953512,94574.0,94559.0,0.1491]
[1763324616527,0.02272555,94577.0,94559.0,0.1491]
[1763324616528,0.02953512,94573.0,94559.0,0.1491]
[1763324616725,0.02953512,94572.0,94559.0,0.1491]
[1763324616879,0.02953512,94571.0,94559.0,0.1491]
[1763324617078,0.01660445,94569.0,94559.0,0.1491]
[1763324617280,0.00077812,94560.0,94559.0,0.1491]
[1763324617481,0.03031324,94560.0,94559.0,0.1491]
[1763324619700,0.03031324,94560.0,94559.0,0.1741]
[1763324619854,0.03031324,94560.0,94559.0,0.20943]
[1763324625302,0.43811324,94560.0,94559.0,0.20943]
[1763324628429,0.43811324,94560.0,94559.0,0.1491]
[1763324628640,0.35331324,94560.0,94559.0,0.1491]
[1763324630289,0.3761419,94560.0,94559.0,0.1491]
[1763324630459,0.38002925,94560.0,94559.0,0.1491]
[1763324630640,0.38002925,94560.0,94559.0,0.14220614]
[1763324631018,0.39663481,94560.0,94559.0,0.14220614]
[1763324633389,0.323,94559.0,94547.0,0.14220614]
[1763324633543,0.05236378,94558.0,94548.0,0.14220614]
[1763324633739,0.02953512,94557.0,94548.0,0.14220614]
[1763324633939,0.02953512,94556.0,94548.0,0.14220614]
[1763324634147,0.02953512,94555.0,94548.0,0.14220614]
[1763324634345,0.02953512,94554.0,94548.0,0.14220614]
[1763324634584,0.02953512,94553.0,94548.0,0.14220614]
[1763324634829,0.02953512,94552.0,94548.0,0.14220614]
[1763324635031,0.02953512,94551.0,94548.0,0.14220614]
[1763324635201,0.02953512,94550.0,94548.0,0.14220614]
[1763324635409,0.43733512,94549.0,94548.0,0.14220614]
[1763324635843,0.43733512,94549.0,94548.0,0.16692614]
[1763324636088,0.43733512,94549.0,94548.0,0.20497614]
[1763324636251,0.43733512,94549.0,94548.0,0.21849417]
[1763324636427,0.43733512,94549.0,94548.0,0.20497614]
[1763324636629,0.35253512,94549.0,94548.0,0.20497614]
[1763324636811,0.02953512,94549.0,94548.0,0.20497614]
[1763324639898,0.01969008,94549.0,94548.0,0.20497614]
[1763324640102,0.00990944,94549.0,94548.0,0.20497614]
[1763324640449,0.03007192,94549.0,94548.0,0.22919475]
[1763324640602,0.0004724,94549.0,94548.0,0.27261349]
[1763324640808,0.00982653,94591.0,94549.0,0.04341874]
[1763324641006,0.0297268,94590.0,94570.0,0.02472]
[1763324641173,0.0297268,94589.0,94570.0,0.02472]
[1763324641377,0.01660373,94586.0,94571.0,0.01784]
[1763324641578,0.0297268,94585.0,94571.0,0.01784]
[1763324641778,0.0297268,94584.0,94571.0,0.01784]
[1763324642002,0.0297268,94583.0,94571.0,0.01784]
[1763324642235,0.0297268,94582.0,94571.0,0.01784]
[1763324642403,0.0297268,94581.0,94571.0,0.01784]
[1763324642608,0.0297268,94580.0,94571.0,0.01784]
[1763324642807,0.0297268,94579.0,94571.0,0.01784]
[1763324643007,0.0297268,94578.0,94571.0,0.01784]
[1763324643203,0.0297268,94577.0,94572.0,0.005589]
[1763324643501,0.0297268,94576.0,94572.0,0.03805]
[1763324643701,0.0297268,94575.0,94572.0,0.03805]
[1763324644061,0.0297268,94574.0,94572.0,0.03805]
[1763324644208,0.0297268,94573.0,94572.0,0.03805]
[1763324644940,0.0297268,94573.0,94572.0,0.06277]
[1763324645144,0.02973975,94573.0,94572.0,0.06277]
[1763324645400,0.43753975,94573.0,94572.0,0.06277]
[1763324648190,0.45414328,94573.0,94572.0,0.06277]
[1763324648517,0.45481022,94573.0,94572.0,0.02472]
[1763324650029,0.45481022,94573.0,94572.0,0.06277]
[1763324650326,0.45481022,94573.0,94572.0,0.02472]
[1763324650544,0.37001022,94573.0,94572.0,0.02472]
[1763324650765,0.37001022,94573.0,94572.0,0.06277]
[1763324652409,0.35340669,94573.0,94572.0,0.06277]
[1763324653068,0.34348481,94573.0,94572.0,0.072615]
[1763324653210,0.34348481,94573.0,94572.0,0.21482114]
[1763324653211,0.32366694,94573.0,94572.0,0.21482114]
[1763324653408,0.00066694,94573.0,94572.0,0.072615]
[1763324654041,0.00066694,94573.0,94572.0,0.11603374]
[1763324655044,0.00066694,94573.0,94572.0,0.11703374]
[1763324655239,0.08546694,94573.0,94572.0,0.11703374]
[1763324655701,0.08546694,94573.0,94572.0,0.11603374]
[1763324655823,0.08546694,94573.0,94572.0,0.11703374]
[1763324656179,0.08546694,94573.0,94572.0,0.11603374]
[1763324656935,0.08546694,94573.0,94572.0,0.10718874]
[1763324657654,0.08546694,94573.0,94572.0,0.10818874]
[1763324658077,0.08546694,94573.0,94572.0,0.10718874]
[1763324658282,0.08546694,94573.0,94572.0,0.10618874]
[1763324658477,0.08546694,94573.0,94572.0,0.10818874]
[1763324658698,0.08546694,94573.0,94572.0,0.12257561]
[1763324659989,0.08546694,94573.0,94572.0,0.10818874]
[1763324665544,0.08546694,94573.0,94572.0,0.20697614]
[1763324666609,0.0848,94573.0,94572.0,0.20697614]
[1763324666820,0.0848,94573.0,94572.0,0.16774614]
[1763324667363,0.0848,94573.0,94572.0,0.20133614]
[1763324667852,0.0848,94573.0,94572.0,0.22503775]
[1763324668727,0.0848,94573.0,94572.0,0.26845649]
[1763324668960,0.323,94593.0,94573.0,0.04341874]
[1763324669171,0.323,94593.0,94592.0,0.07401014]
[1763324669395,0.42755234,94593.0,94592.0,0.21621628]
[1763324669575,0.40776,94593.0,94592.0,0.21621628]
[1763324670059,0.40831557,94593.0,94592.0,0.21621628]
[1763324670470,0.39331557,94593.0,94592.0,0.21621628]
[1763324672155,0.37831557,94593.0,94592.0,0.21621628]
[1763324673828,0.08531557,94593.0,94592.0,0.25963502]
[1763324674025,0.08531557,94593.0,94592.0,0.28559852]
[1763324674231,0.0002,94610.0,94592.0,0.28559852]
[1763324674232,0.0002,94610.0,94593.0,0.04341874]
[1763324674606,0.01844063,94620.0,94609.0,0.21185264]
[1763324674808,0.01844063,94620.0,94619.0,0.04082]
[1763324675140,0.03822659,94620.0,94619.0,0.07441]
[1763324675343,0.12298659,94620.0,94619.0,0.07441]
[1763324675659,0.44598659,94620.0,94619.0,0.07441]
[1763324679366,0.45587323,94620.0,94619.0,0.07441]
[1763324680317,0.45587323,94620.0,94619.0,0.21661614]
[1763324680715,0.45662299,94620.0,94619.0,0.21661614]
[1763324681168,0.45662299,94620.0,94619.0,0.23827775]
[1763324681389,0.44673635,94620.0,94619.0,0.21661614]
[1763324681594,0.0002,94640.0,94619.0,0.21661614]
[1763324681595,0.0002,94640.0,94619.0,0.26003488]
[1763324681916,0.0002,94640.0,94636.0,0.13604348]
[1763324681917,0.823,94637.0,94636.0,0.13604348]
[1763324682140,0.92622493,94637.0,94636.0,0.14964783]
[1763324682353,0.60322493,94637.0,94636.0,0.22665657]
[1763324682567,0.92622493,94637.0,94636.0,0.22665657]
[1763324682780,0.92622493,94637.0,94636.0,0.21305222]
[1763324683440,0.94597791,94637.0,94636.0,0.21305222]
[1763324683873,0.87109503,94637.0,94636.0,0.01728]
[1763324684089,0.323,94636.0,94626.0,0.01728]
[1763324684299,0.0296301,94635.0,94626.0,0.01728]
[1763324684508,0.0296301,94634.0,94626.0,0.01728]
[1763324684722,0.0296301,94633.0,94626.0,0.01728]
[1763324684936,0.0296301,94632.0,94626.0,0.01728]
[1763324685172,0.0296301,94631.0,94615.0,0.03359]
[1763324685396,0.323,94629.0,94615.0,0.03359]
[1763324685602,0.323,94629.0,94602.0,0.09522348]
[1763324685603,0.0296301,94628.0,94609.0,0.05194042]
[1763324685808,0.0296301,94627.0,94609.0,0.05194042]